fUST/lending_fUST_20260619
["ID","MTS","AMOUNT","RATE_DAILY","PERIOD"]
[425608700,1781833843000,-3076.272785,0.00019051,2]
[425608699,1781833843000,-188.6273299,0.00019032,2]
[425608705,1781833843000,-713.81,0.00019062,2]
[425608703,1781833843000,-500.0,0.00019062,2]
[425608695,1781833843000,-500.0,0.00018959,2]
[425608701,1781833843000,-627.79,0.00019062,2]
[425608710,1781833843000,-3871.41,0.00019063,2]
[425608709,1781833843000,-500.0,0.00019063,2]
[425608720,1781833843000,-611.72,0.00019063,2]
[425608712,1781833843000,-506.73750954,0.00019063,2]
[425608711,1781833843000,-500.0,0.00019063,2]
[425608722,1781833843000,-500.0,0.00019063,2]
[425608702,1781833843000,-500.0,0.00019062,2]
[425608721,1781833843000,-506.94871961,0.00019063,2]
[425608812,1781833844000,-500.0,0.00019233,2]
[425608831,1781833844000,-271.830597,0.00019337,2]
[425608828,1781833844000,-500.0,0.00019337,2]
[425608827,1781833844000,-500.0,0.00019336,2]
[425608834,1781833844000,-271.830595,0.00019337,2]
[425608829,1781833844000,-866.69,0.00019337,2]
[425608825,1781833844000,-500.0,0.00019336,2]
[425608826,1781833844000,-713.81,0.00019336,2]
[425608824,1781833844000,-500.0,0.00019336,2]
[425608823,1781833844000,-500.0,0.00019336,2]
[425608830,1781833844000,-500.0,0.00019337,2]
[425608814,1781833844000,-510.23801125,0.00019233,2]
[425608833,1781833844000,-271.830597,0.00019337,2]
[425608835,1781833844000,-3871.41,0.00019337,2]
[425608838,1781833844000,-500.0,0.00019337,2]
[425608832,1781833844000,-271.830597,0.00019337,2]
[425608846,1781833844000,-705.8,0.00019337,2]
[425608848,1781833844000,-500.0,0.00019337,2]
[425608840,1781833844000,-500.0,0.00019337,2]
[425608845,1781833844000,-193.53693823,0.00019337,2]
[425608837,1781833844000,-500.0,0.00019337,2]
[425608847,1781833844000,-500.0,0.00019337,2]
[425608839,1781833844000,-500.0,0.00019337,2]
[425608842,1781833844000,-611.72,0.00019337,2]
[425608841,1781833844000,-500.0,0.00019337,2]
[425608843,1781833844000,-500.0,0.00019337,2]
[425608819,1781833844000,-151.0,0.00019331,2]
[425608844,1781833844000,-500.0,0.00019337,2]
[425608836,1781833844000,-512.85071372,0.00019337,2]
[425608816,1781833844000,-897.32232722,0.00019289,2]
[425608801,1781833844000,-271.830597,0.00019178,2]
[425608811,1781833844000,-500.0,0.00019233,2]
[425608849,1781833844000,-500.0,0.00019338,2]
[425608795,1781833844000,-271.830597,0.00019178,2]
[425608796,1781833844000,-271.830597,0.00019178,2]
[425608790,1781833844000,-271.830597,0.00019178,2]
[425608793,1781833844000,-271.830597,0.00019178,2]
[425608788,1781833844000,-628.0,0.00019173,3]
[425608789,1781833844000,-642.95959042,0.00019173,3]
[425608791,1781833844000,-271.830597,0.00019178,2]
[425608792,1781833844000,-271.830597,0.00019178,2]
[425608794,1781833844000,-271.830597,0.00019178,2]
[425608797,1781833844000,-271.830597,0.00019178,2]
[425608799,1781833844000,-271.830597,0.00019178,2]
[425608807,1781833844000,-500.0,0.00019233,2]
[425608802,1781833844000,-271.830597,0.00019178,2]
[425608803,1781833844000,-271.830597,0.00019178,2]
[425608798,1781833844000,-271.830597,0.00019178,2]
[425608805,1781833844000,-271.830597,0.00019178,2]
[425608804,1781833844000,-271.830597,0.00019178,2]
[425608808,1781833844000,-500.0,0.00019233,2]
[425608800,1781833844000,-271.830597,0.00019178,2]
[425608806,1781833844000,-500.0,0.00019233,2]
[425608809,1781833844000,-500.0,0.00019233,2]
[425608815,1781833844000,-188.6273299,0.00019237,2]
[425608821,1781833844000,-151.0,0.00019331,2]
[425608822,1781833844000,-627.79,0.00019336,2]
[425608817,1781833844000,-151.0,0.00019331,2]
[425608818,1781833844000,-151.0,0.00019331,2]
[425608820,1781833844000,-151.0,0.00019331,2]
[425608813,1781833844000,-500.0,0.00019233,2]
[425608810,1781833844000,-682.79,0.00019233,2]
[425608852,1781833844000,-500.0,0.00019339,2]
[425608857,1781833844000,-208.73075775,0.00019339,2]
[425608851,1781833844000,-508.35983006,0.00019339,2]
[425608881,1781833844000,-300.0,0.000194,2]
[425608884,1781833844000,-300.0,0.000194,2]
[425608889,1781833844000,-221.255062,0.00019502,2]
[425608891,1781833844000,-500.0,0.00019507,2]
[425608898,1781833844000,-160.0,0.00019528,2]
[425608892,1781833844000,-500.0,0.00019507,2]
[425608899,1781833844000,-160.0,0.00019528,2]
[425608890,1781833844000,-500.0,0.00019507,2]
[425608900,1781833844000,-300.0,0.00019589,3]
[425608901,1781833844000,-151.0,0.00019592,2]
[425608895,1781833844000,-500.0,0.00019507,2]
[425608893,1781833844000,-500.0,0.00019507,2]
[425608897,1781833844000,-500.0,0.00019507,2]
[425608894,1781833844000,-682.79,0.00019507,2]
[425608896,1781833844000,-500.0,0.00019507,2]
[425608902,1781833844000,-151.0,0.00019592,2]
[425608913,1781833844000,-500.0,0.0001961,2]
[425608906,1781833844000,-222.5668163,0.000196,2]
[425608904,1781833844000,-159.98940263,0.000196,2]
[425608907,1781833844000,-163.81613914,0.000196,2]
[425608903,1781833844000,-151.0,0.00019592,2]
[425608905,1781833844000,-220.04679026,0.000196,2]
[425608909,1781833844000,-268.28782272,0.00019606,7]
[425608912,1781833844000,-500.0,0.0001961,2]
[425608908,1781833844000,-423.36312613,0.00019606,7]
[425608910,1781833844000,-627.79,0.0001961,2]
[425608911,1781833844000,-500.0,0.0001961,2]
[425608850,1781833844000,-510.31931352,0.00019339,2]
[425608914,1781833844000,-713.81,0.0001961,2]
[425608882,1781833844000,-300.0,0.000194,2]
[425608880,1781833844000,-300.0,0.000194,2]
[425608915,1781833844000,-500.0,0.0001961,2]
[425608883,1781833844000,-300.0,0.000194,2]
[425608879,1781833844000,-300.0,0.000194,2]
[425608855,1781833844000,-500.0,0.00019339,2]
[425608859,1781833844000,-500.0,0.00019377,2]
[425608854,1781833844000,-400.18760781,0.00019339,2]
[425608861,1781833844000,-500.0,0.00019377,2]
[425608856,1781833844000,-513.61444307,0.00019339,2]
[425608860,1781833844000,-500.0,0.00019377,2]
[425608858,1781833844000,-500.0,0.00019341,2]
[425608875,1781833844000,-300.0,0.000194,2]
[425608874,1781833844000,-300.0,0.000194,2]
[425608872,1781833844000,-300.0,0.000194,2]
[425608873,1781833844000,-300.0,0.000194,2]
[425608862,1781833844000,-508.82455044,0.00019377,2]
[425608864,1781833844000,-500.0,0.00019377,2]
[425608853,1781833844000,-305.08217013,0.00019339,2]
[425608865,1781833844000,-500.0,0.00019377,2]
[425608878,1781833844000,-300.0,0.000194,2]
[425608876,1781833844000,-300.0,0.000194,2]
[425608888,1781833844000,-170.196201,0.00019502,2]
[425608886,1781833844000,-163.83102,0.00019502,2]
[425608887,1781833844000,-239.375939,0.00019502,2]
[425608871,1781833844000,-300.0,0.000194,2]
[425608877,1781833844000,-300.0,0.000194,2]
[425608885,1781833844000,-600.0,0.00019501,2]
[425608863,1781833844000,-500.0,0.00019377,2]
[425608869,1781833844000,-156.09944756,0.000194,2]
[425608866,1781833844000,-500.0,0.00019377,2]
[425608867,1781833844000,-692.38,0.00019377,2]
[425608868,1781833844000,-500.0,0.00019377,2]
[425608870,1781833844000,-300.0,0.000194,2]
[425608967,1781833845000,-908.127902,0.00019863,2]
[425608957,1781833845000,-500.0,0.00019781,2]
[425608966,1781833845000,-584.339353,0.00019863,2]
[425608968,1781833845000,-999.34504,0.00019863,2]
[425608955,1781833845000,-500.0,0.00019781,2]
[425608952,1781833845000,-500.0,0.00019781,2]
[425608948,1781833845000,-191.35142068,0.00019737,2]
[425608944,1781833845000,-4088.18328788,0.0001966,2]
[425608953,1781833845000,-500.0,0.00019781,2]
[425608949,1781833845000,-264.85586379,0.00019781,3]
[425608943,1781833845000,-531.06702798,0.00019651,2]
[425608956,1781833845000,-500.0,0.00019781,2]
[425608959,1781833845000,-222.5668163,0.000198,2]
[425608962,1781833845000,-270.73611551,0.00019821,2]
[425608965,1781833845000,-933.207776,0.00019863,2]
[425608960,1781833845000,-12462.66949026,0.000198,2]
[425608958,1781833845000,-220.04679026,0.000198,2]
[425608964,1781833845000,-948.278646,0.00019863,2]
[425608961,1781833845000,-3076.272785,0.00019821,2]
[425608979,1781833845000,-3871.41,0.00019885,2]
[425608969,1781833845000,-800.316955,0.00019863,2]
[425608980,1781833845000,-500.0,0.00019885,2]
[425608971,1781833845000,-627.79,0.00019884,2]
[425608972,1781833845000,-500.0,0.00019884,2]
[425608975,1781833845000,-713.81,0.00019884,2]
[425608941,1781833845000,-500.0,0.00019651,2]
[425608981,1781833845000,-500.0,0.00019885,2]
[425608963,1781833845000,-293.79622388,0.00019821,2]
[425608945,1781833845000,-165.086855,0.00019697,2]
[425608933,1781833845000,-500.0,0.00019613,2]
[425608950,1781833845000,-500.0,0.00019781,2]
[425608970,1781833845000,-794.467284,0.00019863,2]
[425608925,1781833845000,-611.72,0.00019611,2]
[425608916,1781833845000,-509.53525735,0.00019611,2]
[425608926,1781833845000,-500.0,0.00019611,2]
[425608917,1781833845000,-866.69,0.00019611,2]
[425608924,1781833845000,-500.0,0.00019611,2]
[425608918,1781833845000,-500.0,0.00019611,2]
[425608922,1781833845000,-500.0,0.00019611,2]
[425608919,1781833845000,-3871.41,0.00019611,2]
[425608920,1781833845000,-500.0,0.00019611,2]
[425608923,1781833845000,-500.0,0.00019611,2]
[425608921,1781833845000,-500.0,0.00019611,2]
[425608927,1781833845000,-500.0,0.00019611,2]
[425608946,1781833845000,-289.636051,0.00019722,2]
[425608932,1781833845000,-500.0,0.00019613,2]
[425608929,1781833845000,-500.0,0.00019611,2]
[425608931,1781833845000,-500.0,0.00019612,2]
[425608930,1781833845000,-500.0,0.00019611,2]
[425608940,1781833845000,-500.0,0.00019651,2]
[425608939,1781833845000,-500.0,0.00019651,2]
[425608938,1781833845000,-500.0,0.00019651,2]
[425608928,1781833845000,-705.8,0.00019611,2]
[425608936,1781833845000,-500.0,0.00019651,2]
[425608935,1781833845000,-500.0,0.00019651,2]
[425608937,1781833845000,-500.0,0.00019651,2]
[425608951,1781833845000,-500.0,0.00019781,2]
[425608947,1781833845000,-200.0,0.00019723,2]
[425608942,1781833845000,-692.38,0.00019651,2]
[425608934,1781833845000,-500.0,0.00019615,2]
[425608978,1781833845000,-500.0,0.00019885,2]
[425608954,1781833845000,-682.79,0.00019781,2]
[425608974,1781833845000,-508.35373236,0.00019884,2]
[425609010,1781833845000,-188.36,0.00019965,2]
[425609013,1781833845000,-300.0,0.0002,4]
[425609006,1781833845000,-500.0,0.00019925,2]
[425609016,1781833845000,-500.0,0.00020055,2]
[425609017,1781833845000,-500.0,0.00020055,2]
[425609023,1781833845000,-220.04679026,0.000201,2]
[425609027,1781833845000,-325.96,0.00020151,3]
[425609019,1781833845000,-500.0,0.00020055,2]
[425609018,1781833845000,-682.79,0.00020055,2]
[425609021,1781833845000,-500.0,0.00020055,2]
[425609015,1781833845000,-500.0,0.00020055,2]
[425609024,1781833845000,-222.5668163,0.000201,2]
[425609025,1781833845000,-151.0,0.000201,4]
[425609007,1781833845000,-692.38,0.00019925,2]
[425609020,1781833845000,-500.0,0.00020055,2]
[425609044,1781833845000,-611.72,0.00020159,2]
[425609029,1781833845000,-627.79,0.00020158,2]
[425609037,1781833845000,-500.0,0.00020159,2]
[425609042,1781833845000,-405.20193798,0.00020159,2]
[425609031,1781833845000,-500.0,0.00020158,2]
[425609033,1781833845000,-500.0,0.00020158,2]
[425609039,1781833845000,-241.05165553,0.00020159,2]
[425609043,1781833845000,-500.0,0.00020159,2]
[425609035,1781833845000,-713.81,0.00020158,2]
[425609036,1781833845000,-866.69,0.00020159,2]
[425609041,1781833845000,-500.0,0.00020159,2]
[425609040,1781833845000,-500.0,0.00020159,2]
[425608977,1781833845000,-866.69,0.00019885,2]
[425609038,1781833845000,-3871.41,0.00020159,2]
[425609002,1781833845000,-500.0,0.00019925,2]
[425609022,1781833845000,-6021.872922,0.00020087,2]
[425609009,1781833845000,-1846.444,0.00019965,2]
[425609011,1781833845000,-150.104,0.00019965,2]
[425608973,1781833845000,-500.0,0.00019884,2]
[425608982,1781833845000,-500.0,0.00019885,2]
[425608984,1781833845000,-500.0,0.00019885,2]
[425608986,1781833845000,-500.0,0.00019885,2]
[425608985,1781833845000,-611.72,0.00019885,2]
[425608990,1781833845000,-500.0,0.00019885,2]
[425608993,1781833845000,-500.0,0.00019887,2]
[425608989,1781833845000,-500.0,0.00019885,2]
[425608991,1781833845000,-500.0,0.00019886,2]
[425608992,1781833845000,-500.0,0.00019887,2]
[425608988,1781833845000,-705.8,0.00019885,2]
[425608983,1781833845000,-500.0,0.00019885,2]
[425608987,1781833845000,-243.66279784,0.00019885,2]
[425608994,1781833845000,-500.0,0.00019889,2]
[425608976,1781833845000,-330.2097014,0.00019884,2]
[425609012,1781833845000,-5443.02961241,0.0002,5]
[425608996,1781833845000,-222.5668163,0.000199,2]
[425609004,1781833845000,-500.0,0.00019925,2]
[425609045,1781833845000,-500.0,0.00020159,2]
[425609008,1781833845000,-1422.671,0.00019965,2]
[425609005,1781833845000,-500.0,0.00019925,2]
[425609003,1781833845000,-273.81983964,0.00019925,2]
[425609014,1781833845000,-500.0,0.00020055,2]
[425609000,1781833845000,-500.0,0.00019925,2]
[425608999,1781833845000,-450.0,0.000199,2]
[425608997,1781833845000,-13379.28173303,0.000199,2]
[425609001,1781833845000,-500.0,0.00019925,2]
[425608995,1781833845000,-220.04679026,0.000199,2]
[425608998,1781833845000,-32692.056705,0.000199,2]
[425609098,1781833846000,-692.38,0.00020473,2]
[425609088,1781833846000,-500.0,0.00020433,2]
[425609097,1781833846000,-500.0,0.00020473,2]
[425609096,1781833846000,-500.0,0.00020473,2]
[425609085,1781833846000,-521.69882095,0.00020433,2]
[425609083,1781833846000,-505.16586074,0.00020433,2]
[425609084,1781833846000,-611.72,0.00020433,2]
[425609073,1781833846000,-1343.98051,0.00020397,2]
[425609079,1781833846000,-500.0,0.00020433,2]
[425609077,1781833846000,-713.81,0.00020432,2]
[425609089,1781833846000,-500.0,0.00020434,2]
[425609087,1781833846000,-500.0,0.00020433,2]
[425609086,1781833846000,-705.8,0.00020433,2]
[425609104,1781833846000,-500.0,0.00020603,2]
[425609091,1781833846000,-500.0,0.00020437,2]
[425609090,1781833846000,-500.0,0.00020435,2]
[425609094,1781833846000,-500.0,0.00020473,2]
[425609093,1781833846000,-500.0,0.00020473,2]
[425609092,1781833846000,-500.0,0.00020473,2]
[425609106,1781833846000,-500.0,0.00020603,2]
[425609105,1781833846000,-682.79,0.00020603,2]
[425609102,1781833846000,-500.0,0.00020603,2]
[425609099,1781833846000,-151.0,0.000205,3]
[425609100,1781833846000,-1000.0,0.00020567,5]
[425609101,1781833846000,-3076.272785,0.00020591,2]
[425609110,1781833846000,-1000.0,0.0002064,2]
[425609109,1781833846000,-1000.0,0.0002064,2]
[425609081,1781833846000,-570.77526929,0.00020433,2]
[425609095,1781833846000,-500.0,0.00020473,2]
[425609072,1781833846000,-423.36312614,0.00020332,7]
[425609048,1781833846000,-500.0,0.00020159,2]
[425609082,1781833846000,-230.39961866,0.00020433,2]
[425609103,1781833846000,-500.0,0.00020603,2]
[425609046,1781833846000,-705.8,0.00020159,2]
[425609047,1781833846000,-500.0,0.00020159,2]
[425609049,1781833846000,-500.0,0.0002016,2]
[425609050,1781833846000,-500.0,0.00020161,2]
[425609051,1781833846000,-231.78832121,0.00020161,2]
[425609054,1781833846000,-500.0,0.00020199,2]
[425609055,1781833846000,-500.0,0.00020199,2]
[425609052,1781833846000,-500.0,0.00020163,2]
[425609056,1781833846000,-500.0,0.00020199,2]
[425609053,1781833846000,-897.32232722,0.00020166,2]
[425609057,1781833846000,-500.0,0.00020199,2]
[425609058,1781833846000,-500.0,0.00020199,2]
[425609060,1781833846000,-692.38,0.00020199,2]
[425609067,1781833846000,-500.0,0.00020329,2]
[425609071,1781833846000,-500.0,0.00020329,2]
[425609068,1781833846000,-682.79,0.00020329,2]
[425609061,1781833846000,-220.04679026,0.000203,2]
[425609066,1781833846000,-500.0,0.00020329,2]
[425609062,1781833846000,-222.5668163,0.000203,2]
[425609070,1781833846000,-500.0,0.00020329,2]
[425609063,1781833846000,-151.0,0.000203,4]
[425609065,1781833846000,-500.0,0.00020329,2]
[425609069,1781833846000,-500.0,0.00020329,2]
[425609059,1781833846000,-500.0,0.00020199,2]
[425609064,1781833846000,-643.32294565,0.00020329,2]
[425609075,1781833846000,-500.0,0.00020432,2]
[425609074,1781833846000,-627.79,0.00020432,2]
[425609076,1781833846000,-500.0,0.00020432,2]
[425609080,1781833846000,-3871.41,0.00020433,2]
[425609107,1781833846000,-523.99432689,0.00020603,2]
[425609078,1781833846000,-866.69,0.00020433,2]
[425609111,1781833846000,-9087.676277,0.0002067,2]
[425609144,1781833846000,-627.79,0.0002098,2]
[425609145,1781833846000,-713.81,0.0002098,2]
[425609143,1781833846000,-191.85,0.00020915,2]
[425609146,1781833846000,-866.69,0.00020981,2]
[425609149,1781833846000,-705.8,0.00020981,2]
[425609160,1781833846000,-692.38,0.00021021,2]
[425609154,1781833846000,-500.0,0.00021021,2]
[425609157,1781833846000,-500.0,0.00021021,2]
[425609159,1781833846000,-500.0,0.00021021,2]
[425609151,1781833846000,-500.0,0.00020981,2]
[425609156,1781833846000,-500.0,0.00021021,2]
[425609152,1781833846000,-505.91730625,0.00020985,2]
[425609150,1781833846000,-182.59435178,0.00020981,2]
[425609155,1781833846000,-500.0,0.00021021,2]
[425609153,1781833846000,-631.79235404,0.00021011,2]
[425609158,1781833846000,-500.0,0.00021021,2]
[425609162,1781833846000,-539.77055557,0.0002108,2]
[425609172,1781833846000,-1000.0,0.000212,2]
[425609167,1781833846000,-500.0,0.00021151,2]
[425609171,1781833846000,-1000.0,0.000212,2]
[425609168,1781833846000,-682.79,0.00021151,2]
[425609164,1781833846000,-501.12951162,0.0002111,2]
[425609163,1781833846000,-160.0,0.00021089,2]
[425609161,1781833846000,-897.32232722,0.00021043,2]
[425609169,1781833846000,-500.0,0.00021151,2]
[425609170,1781833846000,-365.98699893,0.00021151,2]
[425609165,1781833846000,-500.0,0.00021151,2]
[425609166,1781833846000,-500.0,0.00021151,2]
[425609108,1781833846000,-500.0,0.00020603,2]
[425609141,1781833846000,-500.0,0.00020877,2]
[425609138,1781833846000,-500.0,0.00020877,2]
[425609173,1781833846000,-1000.0,0.000212,2]
[425609137,1781833846000,-500.0,0.00020877,2]
[425609142,1781833846000,-450.0,0.000209,2]
[425609122,1781833846000,-705.8,0.00020707,2]
[425609121,1781833846000,-611.72,0.00020707,2]
[425609120,1781833846000,-3871.41,0.00020707,2]
[425609123,1781833846000,-500.0,0.00020707,2]
[425609112,1781833846000,-1035.480011,0.00020672,2]
[425609118,1781833846000,-866.69,0.00020707,2]
[425609115,1781833846000,-282.69350938,0.00020706,2]
[425609114,1781833846000,-627.79,0.00020706,2]
[425609117,1781833846000,-713.81,0.00020706,2]
[425609116,1781833846000,-527.05003462,0.00020706,2]
[425609119,1781833846000,-507.72835823,0.00020707,2]
[425609135,1781833846000,-248.0,0.00020877,3]
[425609125,1781833846000,-506.58506601,0.00020708,2]
[425609113,1781833846000,-160.0,0.00020692,3]
[425609126,1781833846000,-525.21191329,0.00020709,2]
[425609147,1781833846000,-3871.41,0.00020981,2]
[425609136,1781833846000,-500.0,0.00020877,2]
[425609124,1781833846000,-500.0,0.00020707,2]
[425609140,1781833846000,-500.0,0.00020877,2]
[425609139,1781833846000,-682.79,0.00020877,2]
[425609133,1781833846000,-500.0,0.00020747,2]
[425609132,1781833846000,-500.0,0.00020747,2]
[425609148,1781833846000,-611.72,0.00020981,2]
[425609134,1781833846000,-692.38,0.00020747,2]
[425609130,1781833846000,-500.0,0.00020747,2]
[425609128,1781833846000,-500.0,0.00020747,2]
[425609131,1781833846000,-500.0,0.00020747,2]
[425609127,1781833846000,-500.0,0.00020711,2]
[425609129,1781833846000,-500.0,0.00020747,2]
[425609203,1781833847000,-500.0,0.00021425,2]
[425609190,1781833847000,-500.0,0.00021295,2]
[425609200,1781833847000,-500.0,0.00021425,2]
[425609199,1781833847000,-472.81250819,0.00021425,2]
[425609201,1781833847000,-500.0,0.00021425,2]
[425609205,1781833847000,-151.0,0.0002144,2]
[425609195,1781833847000,-692.38,0.00021295,2]
[425609213,1781833847000,-151.0,0.0002144,2]
[425609206,1781833847000,-151.0,0.0002144,2]
[425609209,1781833847000,-151.0,0.0002144,2]
[425609211,1781833847000,-151.0,0.0002144,2]
[425609202,1781833847000,-682.79,0.00021425,2]
[425609207,1781833847000,-151.0,0.0002144,2]
[425609204,1781833847000,-151.0,0.0002144,2]
[425609208,1781833847000,-151.0,0.0002144,2]
[425609194,1781833847000,-500.0,0.00021295,2]
[425609212,1781833847000,-151.0,0.0002144,2]
[425609210,1781833847000,-151.0,0.0002144,2]
[425609193,1781833847000,-648.04640238,0.00021295,2]
[425609174,1781833847000,-1000.0,0.000212,2]
[425609196,1781833847000,-3076.272785,0.0002136,2]
[425609214,1781833847000,-151.0,0.0002144,2]
[425609179,1781833847000,-1000.0,0.000212,2]
[425609177,1781833847000,-1000.0,0.000212,2]
[425609185,1781833847000,-3871.41,0.00021255,2]
[425609178,1781833847000,-1000.0,0.000212,2]
[425609183,1781833847000,-713.81,0.00021254,2]
[425609182,1781833847000,-627.79,0.00021254,2]
[425609180,1781833847000,-1000.0,0.000212,2]
[425609176,1781833847000,-1000.0,0.000212,2]
[425609181,1781833847000,-724.745002,0.000212,2]
[425609175,1781833847000,-1000.0,0.000212,2]
[425609184,1781833847000,-866.69,0.00021255,2]
[425609186,1781833847000,-611.72,0.00021255,2]
[425609191,1781833847000,-500.0,0.00021295,2]
[425609188,1781833847000,-500.0,0.00021255,2]
[425609198,1781833847000,-3500.0,0.00021411,2]
[425609187,1781833847000,-705.8,0.00021255,2]
[425609189,1781833847000,-500.0,0.00021295,2]
[425609192,1781833847000,-500.0,0.00021295,2]
[425609197,1781833847000,-250.0,0.000214,10]
[425609217,1781833847000,-151.0,0.0002144,2]
[425609219,1781833847000,-151.0,0.0002144,2]
[425609218,1781833847000,-151.0,0.0002144,2]
[425609242,1781833847000,-193818.31374109,0.00021568,2]
[425609241,1781833847000,-911.06887111,0.00021568,2]
[425609244,1781833847000,-171.77936835,0.0001841,2]
[425609240,1781833847000,-1477.8415112,0.00021568,2]
[425609245,1781833847000,-167.55204942,0.0001841,2]
[425609248,1781833847000,-2640.4418636,0.00021568,2]
[425609249,1781833847000,-6085.88211101,0.00021568,2]
[425609247,1781833847000,-1162.39717716,0.00021568,2]
[425609250,1781833847000,-500.0,0.00018959,2]
[425609251,1781833847000,-195.10495006,0.00019233,2]
[425609252,1781833847000,-453.18004884,0.00021568,2]
[425609255,1781833847000,-1285.68992899,0.00021568,2]
[425609254,1781833847000,-300.0,0.00019339,2]
[425609253,1781833847000,-485.7107963,0.00021568,2]
[425609257,1781833847000,-634.15005767,0.00021568,2]
[425609258,1781833847000,-113034.9980883,0.00021568,2]
[425609256,1781833847000,-494.293216,0.00021568,2]
[425609246,1781833847000,-500.0,0.00018685,2]
[425609243,1781833847000,-500.0,0.00018136,2]
[425609239,1781833847000,-2934.60582529,0.00021568,2]
[425609238,1781833847000,-1171298.3372611,0.00021568,2]
[425609215,1781833847000,-151.0,0.0002144,2]
[425609225,1781833847000,-263.39841354,0.00021523,2]
[425609223,1781833847000,-539.77055557,0.00021494,2]
[425609216,1781833847000,-151.0,0.0002144,2]
[425609224,1781833847000,-250.0,0.000215,10]
[425609226,1781833847000,-627.79,0.00021528,2]
[425609221,1781833847000,-529.63134154,0.00021446,2]
[425609222,1781833847000,-720.0,0.00021452,10]
[425609235,1781833847000,-748.010017,0.00021553,2]
[425609227,1781833847000,-713.81,0.00021528,2]
[425609233,1781833847000,-907.10653,0.00021552,2]
[425609229,1781833847000,-3871.41,0.00021529,2]
[425609230,1781833847000,-611.72,0.00021529,2]
[425609234,1781833847000,-919.727312,0.00021552,2]
[425609228,1781833847000,-866.69,0.00021529,2]
[425609231,1781833847000,-705.8,0.00021529,2]
[425609236,1781833847000,-553.494241,0.00021553,2]
[425609237,1781833847000,-516.659742,0.00021553,2]
[425609232,1781833847000,-185.63846306,0.00021529,2]
[425609220,1781833847000,-168.891,0.0002144,2]
[425609314,1781833948000,10000.0,0.00024658,120]
[425609315,1781833959000,10000.0,0.00024658,120]
[425609317,1781833966000,10000.0,0.00024658,120]
[425609320,1781834036000,9082.0,0.00024658,120]
[425609326,1781834044000,5000.0,0.00010111,13]
[425609339,1781834066000,1397.16345861,0.00010111,13]
[425609342,1781834246000,166.28305992,0.00023268,30]
[425609348,1781834252000,163.82757944,0.00017,120]
[425609394,1781834434000,-1016.34972714,9.9e-05,2]
[425609398,1781834451000,-392.75219742,9.9e-05,2]
[425609399,1781834468000,-344.6329582,0.0001,2]
[425609401,1781834485000,-151.0,9.603e-05,2]
[425609403,1781834502000,-159.57509626,0.00011,2]
[425609404,1781834518000,-281.44460314,0.000125,2]
[425609405,1781834535000,-1588.33024209,0.0001294,2]
[425609407,1781834552000,-151.0,9.315e-05,2]
[425609486,1781835032000,-897.5443032,0.0001449,2]
[425609488,1781835032000,-300.0,0.00014999,2]
[425609490,1781835032000,-1470.41919406,0.00015707,2]
[425609487,1781835032000,-355.912026,0.00014976,2]